fUSD/lending_fUSD_20240408
["ID","MTS","AMOUNT","RATE_DAILY","PERIOD"]
[321892597,1712587839483,-1981.98982085,0.0002452,2]
[321892599,1712587839493,-606.87569221,0.0002452,2]
[321892601,1712587839502,-12039.05498849,0.00024521,2]
[321892603,1712587839513,-9001.710018,0.00024521,2]
[321892605,1712587839524,-3281.00510643,0.00024521,2]
[321892607,1712587839535,-1047.86294073,0.00024521,2]
[321892610,1712587839555,-2565.5,0.00024521,2]
[321892613,1712587839566,-5749.3089469,0.00024521,2]
[321892615,1712587839575,-480.26933075,0.00024521,2]
[321892617,1712587839584,-1981.98982085,0.00024521,2]
[321892619,1712587839593,-297.63156777,0.00024521,2]
[321892621,1712587839602,-297.63156777,0.00024521,2]
[321892623,1712587839611,-193.30393743,0.00024523,2]
[321892625,1712587839622,-1788.68588342,0.00024523,2]
[321892627,1712587839632,-162.08040428,0.00024523,2]
[321892629,1712587839641,-162.08040428,0.00024524,2]
[321892631,1712587839650,-606.87569221,0.00024524,2]
[321892633,1712587839659,-606.87569221,0.00024524,2]
[321892635,1712587839669,-480.26933075,0.00024525,2]
[321892637,1712587839678,-24803.32142546,0.00024526,2]
[321892639,1712587839690,-8881.12057509,0.00024526,2]
[321892641,1712587839699,-33684.44200055,0.00024526,2]
[321892643,1712587839708,-606.87569221,0.00024532,2]
[321892645,1712587839717,-189.68700238,0.00024533,2]
[321892647,1712587839727,-480.26933075,0.00024533,2]
[321892649,1712587839736,-480.26933075,0.00024534,2]
[321892651,1712587839745,-27374.06565196,0.00024534,2]
[321892654,1712587839757,-292.13448327,0.00024534,2]
[321892740,1712587842511,-730.13131189,0.00024534,2]
[321892741,1712587842522,-2559.92763395,0.00024534,2]
[321892742,1712587842534,-274.54543459,0.00024534,2]
[321892743,1712587842547,-1173.51512187,0.00024534,2]
[321892745,1712587842559,-1280.12236302,0.00024534,2]
[321892747,1712587842568,-297.63156777,0.00024536,2]
[321892749,1712587842577,-162.34391706,0.00024538,2]
[321892750,1712587842621,-3011.50387819,0.00024538,2]
[321892751,1712587842631,-3173.84779525,0.00024539,2]
[321892752,1712587842640,-162.08040428,0.00024539,2]
[321892754,1712587842649,-189.68700238,0.0002454,2]
[321892756,1712587842659,-297.63156777,0.00024542,2]
[321892757,1712587842669,-189.68700238,0.00024542,2]
[321892758,1712587842678,-606.87569221,0.00024542,2]
[321892759,1712587842688,-480.26933075,0.00024542,2]
[321892760,1712587842698,-3173.84779525,0.00024546,2]
[321892761,1712587842707,-189.68700238,0.00024547,2]
[321892762,1712587842717,-297.63156777,0.00024548,2]
[321892763,1712587842726,-162.08040428,0.0002455,2]
[321892764,1712587842735,-189.68700238,0.00024554,2]
[321892765,1712587842745,-33684.44200055,0.00024556,2]
[321892766,1712587842755,-33684.44200055,0.00024556,2]
[321892767,1712587842765,-3173.84779525,0.00024558,2]
[321892768,1712587842774,-1981.98982085,0.00024559,2]
[321892769,1712587842783,-162.08040428,0.0002456,2]
[321892770,1712587842794,-3173.84779525,0.00024562,2]
[321892771,1712587842803,-33684.44200055,0.00024562,2]
[321892772,1712587842813,-162.08040428,0.00024566,2]
[321892773,1712587842823,-480.26933075,0.00024566,2]
[321892774,1712587842833,-189.68700238,0.00024567,2]
[321892775,1712587842842,-1981.98982085,0.00024567,2]
[321892776,1712587842851,-297.63156777,0.0002457,2]
[321892777,1712587842860,-297.63156777,0.00024572,2]
[321892778,1712587842870,-480.26933075,0.00024573,2]
[321892779,1712587842879,-1981.98982085,0.00024578,2]
[321892780,1712587842888,-1981.98982085,0.0002458,2]
[321892781,1712587842897,-480.26933075,0.00024581,2]
[321892782,1712587842907,-12999.43350963,0.00024581,2]
[321892783,1712587843042,-7152.1,0.00024581,2]
[321892785,1712587843480,-357.37,0.00024581,2]
[321892786,1712587843497,-8256.7690378,0.00024581,2]
[321892787,1712587843520,-695.30832069,0.00024581,2]
[321892788,1712587843534,-4223.46113243,0.00024581,2]
[321892789,1712587843546,-480.26933075,0.00024582,2]
[321892790,1712587843557,-3173.84779525,0.00024585,2]
[321892791,1712587843568,-606.87569221,0.00024587,2]
[321892792,1712587843579,-3173.84779525,0.00024597,2]
[321892793,1712587843589,-606.87569221,0.00024598,2]
[321892794,1712587843600,-3173.84779525,0.00024599,2]
[321892795,1712587843611,-247.37,0.00024623,2]
[321892796,1712587843622,-197.45,0.0002468,2]
[321892797,1712587843632,-3035.51232538,0.00024748,2]
[321892798,1712587843643,-164.11253645,0.00024749,2]
[321892799,1712587843654,-2223.24347368,0.000248,2]
[321892800,1712587843666,-500.0,0.000249,2]
[321892801,1712587843677,-157.92490406,0.00024938,2]
[321892802,1712587843688,-3155.84658012,0.00024983,2]
[321892803,1712587843698,-425.64683878,0.00024986,2]
[321892804,1712587843709,-5800.0,0.00024997,2]
[321892805,1712587843720,-396.72256604,0.00024998,2]
[321892806,1712587843732,-681.90393791,0.00024998,2]
[321892807,1712587843743,-1232.14569412,0.00024998,2]
[321892808,1712587843754,-182.94210018,0.00024998,2]
[321892809,1712587843766,-155.92538713,0.00024998,2]
[321892810,1712587843777,-155.62920748,0.00024998,2]
[321892811,1712587843788,-382.08409876,0.00024998,2]
[321892812,1712587843802,-155.0,0.00024998,2]
[321892813,1712587843813,-500.0,0.00024998,2]
[321892814,1712587843823,-472.63292585,0.00024998,2]
[321892815,1712587843835,-687.69148833,0.00024998,2]
[321892816,1712587843847,-155.77109055,0.00024999,2]
[321892817,1712587843859,-205.23806172,0.00024999,2]
[321892818,1712587843870,-155.68969577,0.00024999,2]
[321892819,1712587843881,-177.91304322,0.00025,2]
[321892820,1712587843892,-224.98789402,0.00025,2]
[321892821,1712587843903,-1023.6155917,0.00025,2]
[321892822,1712587843915,-982.39516849,0.00025,2]
[321892823,1712587843926,-1034.14826321,0.00025,2]
[321892824,1712587843938,-2602.89125943,0.00025,2]
[321892825,1712587843949,-5000.0,0.00025,2]
[321892826,1712587843960,-155.0,0.00025,2]
[321892827,1712587843971,-650.0,0.00025,3]
[321892828,1712587843982,-3142.0,0.00025,2]
[321892829,1712587843993,-157.92490406,0.00025453,2]
[321892830,1712587844004,-940.2971,0.000257,2]
[321892831,1712587844015,-384.28,0.00025843,2]
[321892832,1712587844026,-1000.0,0.000259,2]
[321892833,1712587844038,-105901.7895,0.000259,2]
[321892834,1712587844052,-611.2291,0.000259,2]
[321892835,1712587844064,-2500.0,0.000259,2]
[321892836,1712587844076,-39944.8804,0.000259,2]
[321892837,1712587844087,-1023.52686021,0.00025927,2]
[321892838,1712587844098,-9386.6819705,0.00025927,2]
[321892839,1712587844110,-157.92490406,0.00025969,2]
[321892840,1712587844122,-247.37,0.00025993,2]
[321892841,1712587844133,-12559.77778507,0.00026,2]
[321892842,1712587844145,-148667.05811035,0.00026,2]
[321892843,1712587844162,-328.77499995,0.00026,2]
[321892844,1712587844270,-97485.97620566,0.00026,2]
[321892845,1712587844284,-1025.1000001,0.00026,2]
[321892846,1712587844299,-717.56543732,0.00026,2]
[321892847,1712587844322,-6364.16187142,0.00026,2]
[321892848,1712587844335,-1638.41720312,0.00026,2]
[321892849,1712587844348,-5828.27587753,0.00026,2]
[321892850,1712587844367,-2126.39841569,0.00026,2]
[321892851,1712587844381,-5677.29087629,0.00026,2]
[321892855,1712587844446,-3566.65,0.00026,2]
[321892859,1712587844475,-7147.41336,0.00026,2]
[321893290,1712587847495,-301.37161956,0.00024533,2]
[321893292,1712587847504,-210.81241358,0.00024554,2]
[321893294,1712587847513,-7443.43439224,0.00026,2]
[321893296,1712587847524,-25124.39375169,0.00026,2]
[321893298,1712587847536,-4524.69520473,0.00026,2]
[321893304,1712587847583,-114342.70331439,0.00026,2]
[321893306,1712587847594,-1245.9605472,0.00026,2]
[321893309,1712587847606,-66745.73043232,0.00026,2]
[321893311,1712587847615,-3000.0,0.00026027,2]
[321893313,1712587847625,-899.40034,0.0002604,2]
[321893315,1712587847633,-593.10508565,0.00026069,2]
[321893319,1712587847669,-46.76491435,0.00026069,2]
[321893321,1712587847679,-561.6,0.00026116,2]
[321893324,1712587847689,-438.4,0.00026181,2]
[321893326,1712587847698,-2169.58704206,0.00026192,2]
[321893328,1712587847709,-5083.01515017,0.00026192,2]
[321894369,1712587894011,765.28,0.00024887,15]
[321894370,1712587905509,-177.18,0.0002486,4]
[321894371,1712587905534,-9211.4607886,0.00026192,4]
[321894372,1712587905562,-152.0,0.00026941,5]
[321894373,1712587905583,-188.3420924,0.00027,4]
[321894374,1712587922784,-50000.0,0.000269,3]
[321894375,1712587944005,-50000.0,0.000269,3]
[321894415,1712588107178,91.38553089,0.00015,3]
[321894416,1712588107202,19908.61446911,0.00015,3]
[321894464,1712588133771,-26806.64147337,0.00025,7]
[321894467,1712588198186,320.37763761,0.000268,12]
[321894470,1712588216021,-1019.856069,0.000269,7]
[321894471,1712588216044,-1019.856069,0.000269,7]
[321894472,1712588216065,-151.0,0.000269,7]
[321894473,1712588216086,-151.0,0.000269,7]
[321894474,1712588216106,-151.0,0.000269,7]
[321894475,1712588216480,-151.0,0.000269,7]
[321894476,1712588216504,-151.0,0.000269,7]
[321894477,1712588216524,-151.0,0.000269,7]
[321894478,1712588216545,-151.0,0.000269,7]
[321894479,1712588216566,-151.0,0.000269,7]
[321894480,1712588216587,-151.0,0.000269,7]
[321894481,1712588216606,-151.0,0.000269,7]
[321894482,1712588216626,-151.0,0.000269,7]
[321894483,1712588216648,-151.0,0.000269,7]
[321894484,1712588216670,-877.632485,0.000269,7]
[321894485,1712588216691,-151.0,0.000269,7]
[321894486,1712588216714,-151.0,0.000269,7]
[321894487,1712588216734,-877.632485,0.000269,7]
[321894488,1712588216755,-151.0,0.000269,7]
[321894489,1712588216775,-197.25647,0.000269,7]
[321894490,1712588216796,-362.815583,0.000269,7]
[321894491,1712588216816,-362.815583,0.000269,7]
[321894492,1712588216839,-151.0,0.000269,7]
[321894493,1712588216860,-151.0,0.000269,7]
[321894494,1712588216880,-257.049137,0.000269,7]
[321894495,1712588216900,-151.0,0.000269,7]
[321894496,1712588216923,-284.370312,0.000269,7]
[321894497,1712588216945,-284.370312,0.000269,7]
[321894498,1712588216967,-151.0,0.000269,7]
[321894499,1712588216989,-307.348283,0.000269,7]
[321894500,1712588217013,-307.348283,0.000269,7]
[321894501,1712588217034,-151.0,0.000269,7]
[321894502,1712588217055,-151.0,0.000269,7]
[321894503,1712588217079,-151.0,0.000269,7]
[321894504,1712588217101,-151.0,0.000269,7]
[321894505,1712588217124,-151.0,0.000269,7]
[321894506,1712588217146,-151.0,0.000269,7]
[321894507,1712588217170,-2948.233843,0.000269,7]
[321894508,1712588217191,-151.0,0.000269,7]
[321894509,1712588217212,-151.0,0.000269,7]
[321894510,1712588217234,-2948.233843,0.000269,7]
[321894511,1712588217256,-151.0,0.000269,7]
[321894512,1712588217279,-151.0,0.000269,7]
[321894513,1712588217302,-151.0,0.000269,7]
[321894514,1712588217325,-261.565816,0.000269,7]
[321894515,1712588217349,-261.565816,0.000269,7]
[321894516,1712588217370,-151.0,0.000269,7]
[321894517,1712588217392,-151.0,0.000269,7]
[321894518,1712588217413,-244.434585,0.000269,7]
[321894519,1712588217436,-244.434585,0.000269,7]
[321894520,1712588217458,-151.0,0.000269,7]
[321894521,1712588217480,-151.0,0.000269,7]
[321894522,1712588217505,-244.434585,0.000269,7]
[321894523,1712588217528,-244.434585,0.000269,7]
[321894524,1712588217550,-151.0,0.000269,7]
[321894525,1712588217572,-254.088838,0.000269,7]
[321894526,1712588217596,-151.0,0.000269,7]
[321894527,1712588217619,-151.0,0.000269,7]
[321894528,1712588217642,-151.0,0.000269,7]
[321894529,1712588217664,-151.0,0.000269,7]
[321894530,1712588217685,-151.0,0.000269,7]
[321894531,1712588217706,-151.0,0.000269,7]
[321894532,1712588217729,-937.07695,0.000269,7]
[321894533,1712588217751,-151.0,0.000269,7]
[321894534,1712588217771,-937.07695,0.000269,7]
[321894535,1712588217793,-151.0,0.000269,7]
[321894536,1712588217815,-316.709414,0.000269,7]
[321894537,1712588217929,316.709414,0.000269,7]
[321894539,1712588219738,937.07695,0.000269,7]
[321894540,1712588219953,937.07695,0.000269,7]
[321894541,1712588220815,316.709414,0.000269,7]
[321894542,1712588221111,316.709414,0.000269,7]
[321894544,1712588225119,151.0,0.000269,7]
[321894545,1712588225408,151.0,0.000269,7]
[321894546,1712588225880,150.5,0.0002589,15]
[321894547,1712588226426,150.5,0.0002588,15]
[321894548,1712588226910,150.5,0.0002587,15]
[321894549,1712588228663,151.0,0.000269,7]
[321894550,1712588229030,269.299453,0.000269,7]
[321894551,1712588230606,151.0,0.000269,7]
[321894552,1712588230665,152.094444,0.000269,7]
[321894553,1712588231170,151.0,0.000269,7]
[321894554,1712588232518,151.0,0.000269,7]
[321894555,1712588232892,151.0,0.000269,7]
[321894556,1712588233716,151.539323,0.000269,7]
[321894558,1712588237836,151.0,0.000269,7]
[321894559,1712588238096,151.0,0.000269,7]
[321894561,1712588244017,151.0,0.000269,7]
[321894562,1712588244145,151.0,0.000269,7]
[321894564,1712588254998,917.870462,0.000269,7]
[321894565,1712588257864,151.0,0.000269,7]
[321894566,1712588259732,917.870462,0.000269,7]
[321894567,1712588261224,151.0,0.000269,7]
[321894568,1712588268381,151.0,0.000269,7]
[321894569,1712588271749,151.0,0.000269,7]
[321894570,1712588275307,151.0,0.000269,7]
[321894571,1712588276802,151.0,0.000269,7]
[321894572,1712588280246,211.38717225,0.0002688,30]
[321894573,1712588288236,156.224541,0.000269,7]
[321894574,1712588296661,151.0,0.000269,7]
[321894576,1712588301158,151.0,0.000269,7]
[321894577,1712588303370,151.0,0.000269,7]
[321894578,1712588308915,151.0,0.000269,7]
[321894579,1712588312099,194.012859,0.000269,7]
[321894580,1712588320506,2653.410459,0.000269,7]
[321894581,1712588324021,151.0,0.000269,7]
[321894582,1712588324279,2653.410459,0.000269,7]
[321894583,1712588331415,207.748654,0.000269,7]
[321894584,1712588331624,551.093087,0.000269,7]
[321894585,1712588334905,207.748654,0.000269,7]
[321894586,1712588334983,551.093087,0.000269,7]
[321894587,1712588336232,151.0,0.000269,7]
[321894588,1712588339708,151.0,0.000269,7]
[321894589,1712588341833,256.30211012,0.000269,12]
[321894590,1712588349276,151.0,0.000269,7]
[321894591,1712588350935,155.142723,0.000269,7]
[321894592,1712588352746,151.0,0.000269,7]
[321894593,1712588356596,151.0,0.000269,7]
[321894594,1712588367470,151.0,0.000269,7]
[321894596,1712588379955,717.45,0.00024329,15]
[321894597,1712588391228,237.047327,0.000269,7]
[321894598,1712588392404,151.0,0.000269,7]
[321894599,1712588395114,237.047327,0.000269,7]
[321894600,1712588395230,836.06042,0.000269,7]
[321894601,1712588398932,836.06042,0.000269,7]
[321894602,1712588412456,151.334418,0.000269,7]
[321894603,1712588415163,151.0,0.000269,7]
[321894604,1712588417678,708.026989,0.000269,7]
[321894605,1712588421659,708.026989,0.000269,7]
[321894606,1712588438992,241.714765,0.000269,7]
[321894607,1712588442140,241.714765,0.000269,7]
[321894608,1712588442612,151.0,0.000269,7]
[321894609,1712588447517,3070.0,0.00028021,17]
[321894610,1712588447625,151.0,0.000269,7]
[321894611,1712588448446,151.0,0.000269,7]
[321894613,1712588574312,2462.0,0.00028021,17]
[321894617,1712588655510,-151.0,0.000269,7]
[321894618,1712588655533,-151.0,0.000269,7]
[321894619,1712588655554,-151.0,0.000269,7]
[321894620,1712588655577,-2388.069413,0.000269,7]
[321894621,1712588655602,-524.153431,0.000269,7]
[321894622,1712588655625,-2388.069413,0.000269,7]
[321894623,1712588655647,-524.153431,0.000269,7]
[321894624,1712588655669,-749.66156,0.000269,7]
[321894625,1712588655693,-749.66156,0.000269,7]
[321894626,1712588655717,-151.0,0.000269,7]
[321894627,1712588655738,-151.0,0.000269,7]
[321894628,1712588655762,-151.0,0.000269,7]
[321894629,1712588655784,-826.083415,0.000269,7]
[321894630,1712588655807,-826.083415,0.000269,7]
[321894631,1712588655829,-151.0,0.000269,7]
[321894632,1712588655851,-151.0,0.000269,7]
[321894633,1712588655878,-151.0,0.000269,7]
[321894634,1712588655899,-151.0,0.000269,7]
[321894635,1712588655921,-205.04168808,0.000269,12]
[321894636,1712588655943,-151.0,0.000269,7]
[321894637,1712588658019,151.0,0.000269,7]
[321894638,1712588659531,151.0,0.000269,7]
[321894639,1712588661271,151.0,0.000269,7]
[321894640,1712588661990,151.0,0.000269,7]
[321894641,1712588663514,215.567166,0.000269,7]
[321894642,1712588664030,481.0,0.00027,10]
[321894646,1712588680168,2149.262471,0.000269,7]
[321894649,1712588684733,2149.262471,0.000269,7]
[321894650,1712588684915,151.0,0.000269,7]
[321894652,1712588688066,193.250579,0.000269,7]
[321894653,1712588688126,151.0,0.000269,7]
[321894654,1712588695636,151.0,0.000269,7]
[321894656,1712588705448,752.454378,0.000269,7]
[321894657,1712588708587,151.0,0.000269,7]
[321894658,1712588711222,752.454378,0.000269,7]
[321894670,1712588945029,188.82,0.00024986,15]
[321894671,1712588955447,672.6,0.00024329,15]
[321894690,1712589032677,-155.0,0.00018968,2]
[321894692,1712589032686,-314.29674785,0.00018969,2]
[321894693,1712589032698,-222.42588458,0.00018969,2]
[321894694,1712589032708,-209.96134067,0.00018989,2]
[321894695,1712589032792,-142.21865933,0.00018989,2]
[321894696,1712589032802,-1626.0,0.00019,2]
[321894697,1712589032812,-159.17077832,0.00019848,2]
[321894698,1712589032822,-950.81056235,0.00019948,2]
[321894699,1712589032833,-3370.62986298,0.00019948,2]
[321894700,1712589032842,-1498.81901845,0.00019949,2]
[321894701,1712589032854,-318.4507802,0.00019949,2]
[321894702,1712589032863,-159.17077832,0.00020374,2]
[321894703,1712589032872,-150.0,0.00020641,2]
[321894704,1712589032881,-436.4490773,0.00020642,2]
[321894705,1712589032893,-661.60614474,0.00020642,2]
[321894706,1712589032904,-2069.99038657,0.00020643,2]
[321894707,1712589032914,-496.13186855,0.00020644,2]
[321894708,1712589032923,-32684.55592147,0.00020644,2]
[321894709,1712589033050,-14298.35741911,0.00020644,2]
[321894710,1712589033062,-262.96,0.00020644,2]
[321894711,1712589033073,-918.53392302,0.00020644,2]
[321894715,1712589033144,-2261.4065,0.00020644,2]
[321894716,1712589033155,-267.02176931,0.00020644,2]
[321894717,1712589033165,-20506.81321456,0.00020645,2]
[321894718,1712589033177,-314.42749356,0.00020645,2]
[321894754,1712589039226,-986.56444578,0.00020645,2]
[321894755,1712589039238,-22038.540921,0.00020645,2]
[321894756,1712589039250,-16537.02725252,0.00020645,2]
[321894757,1712589039261,-1435.28,0.00020645,2]
[321894758,1712589039277,-9186.97222519,0.00020645,2]
[321894759,1712589039287,-1935.16451658,0.000208,2]
[321894760,1712589039296,-19348.71622268,0.00020899,2]
[321894761,1712589039306,-159.17077832,0.000209,2]
[321894762,1712589039315,-905.33907217,0.000209,2]
[321894763,1712589039325,-324.54641003,0.000209,2]
[321894764,1712589039334,-21398.90740754,0.00020999,2]
[321894765,1712589039343,-4335.39,0.00020999,2]
[321894766,1712589039352,-4335.39,0.00020999,2]
[321894767,1712589039361,-4335.39,0.00020999,2]
[321894768,1712589039370,-4335.39,0.00020999,2]
[321894769,1712589039379,-1745.88200252,0.00020999,2]
[321894770,1712589039415,-2589.50799748,0.00020999,2]
[321894771,1712589039426,-1890.97954174,0.00020999,2]
[321894772,1712589039436,-651.59,0.00020999,2]
[321894773,1712589039447,-313.27,0.00020999,2]
[321894774,1712589039458,-1479.55045826,0.00020999,2]
[321894775,1712589039468,-4335.39,0.00020999,2]
[321894776,1712589039477,-1346.15954173,0.00020999,2]
[321894777,1712589039669,-2989.23045827,0.00020999,2]
[321894778,1712589039678,-3283.13801754,0.00020999,2]
[321894779,1712589039691,-1052.25198246,0.00020999,2]
[321894780,1712589039700,-4335.39,0.00020999,2]
[321894781,1712589039709,-4335.39,0.00020999,2]
[321894782,1712589039718,-4335.39,0.00020999,2]
[321894783,1712589039728,-285.77801754,0.00020999,2]
[321894784,1712589039742,-2104.27401744,0.00020999,2]
[321894785,1712589039775,-1945.33796502,0.00020999,2]
[321894787,1712589039784,-3026.42984645,0.00020999,2]
[321894788,1712589039795,-262.65011809,0.00020999,2]
[321894789,1712589039806,-820.17749397,0.00020999,2]
[321894790,1712589039827,-226.13254149,0.00020999,2]
[321894791,1712589039836,-1113.87924406,0.00020999,2]
[321894792,1712589039847,-2453.07925518,0.00020999,2]
[321894795,1712589041463,-768.43150076,0.00020999,2]
[321894796,1712589041473,-4335.39,0.00020999,2]
[321894797,1712589041483,-4335.39,0.00020999,2]
[321894798,1712589041492,-1606.79052317,0.00020999,2]
[321894799,1712589041515,-1461.00036622,0.00020999,2]
[321894800,1712589041528,-271.25208241,0.00020999,2]
[321894801,1712589041540,-620.47749633,0.00020999,2]
[321894802,1712589041695,-375.86953187,0.00020999,2]
[321894803,1712589041706,-4335.39,0.00020999,2]
[321894804,1712589041718,-727.79272348,0.00020999,2]
[321894833,1712589043361,-3607.59727652,0.00020999,2]
[321894834,1712589043370,-4335.39,0.00020999,2]
[321894835,1712589043380,-4335.39,0.00020999,2]
[321894836,1712589043391,-4335.39,0.00020999,2]
[321894837,1712589043400,-4335.50105778,0.00020999,2]
[321894838,1712589043410,-402148.83011425,0.00021,2]
[321894839,1712589043419,-54038.93624215,0.00021,2]
[321894840,1712589043429,-550.0,0.00021,3]
[321894841,1712589043439,-352.18,0.00021253,2]
[321894842,1712589043449,-336.96,0.00021323,2]
[321894843,1712589043459,-1206.2,0.00021382,2]
[321894844,1712589043469,-350.71,0.00021386,2]
[321894845,1712589043478,-200.0,0.00021435,2]
[321894846,1712589043488,-250.0,0.00021918,2]
[321894847,1712589043498,-783.12017279,0.00022,2]
[321894848,1712589043507,-1935.16451652,0.00022193,2]
[321894849,1712589043516,-19348.71622264,0.00022281,2]
[321894850,1712589043528,-905.33907216,0.00022356,2]
[321894851,1712589043538,-30000.0,0.00023,2]
[321894852,1712589043547,-600.0,0.00023,3]
[321894853,1712589043557,-182.91,0.00023483,2]
[321894854,1712589043566,-352.18,0.00023517,2]
[321894855,1712589043576,-1935.16451652,0.00023586,2]
[321894856,1712589043585,-19348.71622264,0.00023663,2]
[321894857,1712589043595,-663.04,0.00023717,2]
[321894858,1712589043604,-905.33907216,0.00023813,2]
[321894859,1712589043613,-336.96,0.00023989,2]
[321894860,1712589043622,-213.77204202,0.00024062,2]
[321894861,1712589043632,-2208.16129134,0.00024329,2]
[321894862,1712589043642,-1000.190002,0.0002451,2]
[321894863,1712589043652,-1000.190002,0.00024528,2]
[321894864,1712589043661,-1000.190002,0.00024537,2]
[321894865,1712589043670,-1000.190002,0.00024544,2]
[321894866,1712589043680,-621.66917706,0.00024554,2]
[321894867,1712589043689,-1000.190002,0.00024572,2]
[321894868,1712589043698,-1000.190002,0.0002458,2]
[321894869,1712589043707,-1000.190002,0.00024583,2]
[321894870,1712589043717,-1000.190002,0.00024593,2]
[321894871,1712589043730,-1000.190002,0.00024595,2]
[321894872,1712589043739,-500.0,0.00024658,2]
[321894873,1712589043748,-166.7,0.00024769,2]
[321894874,1712589043759,-2223.24347368,0.000248,2]
[321894875,1712589043771,-172.31727305,0.00024899,2]
[321894876,1712589043780,-169.2225417,0.000249,2]
[321894877,1712589043790,-1935.16451652,0.00024978,2]
[321894878,1712589043799,-191.7150902,0.00024996,2]
[321894879,1712589043808,-625337.1446055,0.00024996,2]
[321894880,1712589043822,-993.19589029,0.00024996,2]
[321894881,1712589043834,-1690.37849645,0.00024996,2]
[321894882,1712589043845,-7073.23321966,0.00024996,2]
[321894885,1712589043908,-284.43640377,0.0002452,2]
[321894887,1712589043917,-266403.70267598,0.00024996,2]
[321894889,1712589043948,-890.28356065,0.00024996,2]
[321894890,1712589043960,-3327.87149677,0.00024996,2]
[321894891,1712589043992,-277.33877596,0.00024996,2]
[321894892,1712589044003,-799.59809413,0.00024996,2]
[321894893,1712589044025,-7195.25160001,0.00024996,2]
[321894908,1712589046893,-284.43640377,0.00024503,2]
[321894909,1712589046904,-284.43640377,0.00024509,2]
[321894910,1712589046914,-284.43640377,0.00024511,2]
[321894911,1712589046923,-284.43640377,0.00024516,2]
[321894912,1712589046933,-284.43640377,0.00024524,2]
[321894913,1712589046943,-284.43640377,0.00024559,2]
[321894914,1712589046954,-284.43640377,0.0002457,2]
[321894915,1712589046964,-213788.36661987,0.00024996,2]
[321894916,1712589047026,-106240.71627351,0.00024996,2]
[321894917,1712589047036,-37441.01505618,0.00024999,2]
[321894918,1712589047046,-3223.04078793,0.00025,2]
[321894919,1712589047056,-220.46155512,0.00025,2]
[321894920,1712589047065,-2602.89125943,0.00025,2]
[321894921,1712589047075,-18000.0,0.00025,2]
[321894922,1712589047085,-7009.95072976,0.00025,2]
[321894923,1712589047094,-1001.92089163,0.00025,2]
[321894924,1712589047103,-2843.32451305,0.00025,2]
[321894925,1712589047113,-6255.09323613,0.00025,2]
[321894926,1712589047122,-3063.0,0.00025,2]
[321894927,1712589047132,-650.0,0.00025,3]
[321894928,1712589047142,-19348.71622264,0.00025044,2]
[321894929,1712589047151,-324.54641003,0.00025045,2]
[321894930,1712589047161,-16138.21203297,0.000251,2]
[321894931,1712589047171,-3162.88644674,0.000251,2]
[321894932,1712589047180,-905.33907216,0.00025269,2]
[321894933,1712589047191,-409.02412887,0.00025587,2]
[321894934,1712589047201,-218.35,0.00025588,2]
[321894935,1712589047210,-218.35,0.00025594,2]
[321894936,1712589047221,-218.35,0.00025601,2]
[321894937,1712589047231,-218.35,0.00025608,2]
[321894938,1712589047241,-218.35,0.00025615,2]
[321894939,1712589047251,-218.35,0.00025621,2]
[321894940,1712589047261,-218.35,0.00025628,2]
[321894941,1712589047270,-218.35,0.00025635,2]